Cogmind - Beta 12 X4 @@@ ROGUE MODE // 2022.11.13 @ 23:56:16 // Halloween2019/Abominations Player: Runia Result: Destroyed by Lesser Abomination with Etherial Claws Performance ------------- Evolutions (0) 0 Regions Visited (1) 200 Robots Destroyed (5) 25 Value Destroyed (266) 266 Prototype IDs (4) 80 Alien Tech Used (0) 0 Bonus (0) 0 TOTAL SCORE: 571 Bonus ------- None Cogmind --------- Core Integrity 0/250 Matter 253/300 Energy 250/250 System Corruption 6% Temperature Cool (0) Movement Treading (160) Location -10/Materials Parts ------- > --- POWER (1) -------- Ion Engine > --- PROPULSION (2) --- Light Treads Light Treads > --- UTILITY (2) ------ Improved Heat Sink Medium Storage Unit > --- WEAPON (2) ------- Medium Laser Assault Rifle > --- INVENTORY (10) --- Ion Engine Light Treads Light Treads Large Matter Pod (4) Grenade Launcher Grenade Launcher Grenade Launcher Grenade Launcher Datajack Mace Peak State ------------ > --- POWER ------------ Ion Engine > --- PROPULSION ------- Light Treads Light Treads > --- UTILITY ---------- Improved Heat Sink Medium Storage Unit > --- WEAPON ----------- Medium Laser Assault Rifle > --- INVENTORY -------- Ion Engine Light Treads Light Treads Large Matter Pod Grenade Launcher Grenade Launcher Grenade Launcher Datajack Mace [Rating: 10] Favorites ----------- Power Ion Engine Engine Ion Engine Propulsion Light Treads Treads Light Treads Leg Aluminum Leg Utility Medium Storage Unit Device Improved Heat Sink Storage Medium Storage Unit Weapon Assault Rifle Energy Gun Medium Laser Ballistic Gun Assault Rifle Launcher Grenade Launcher Build | -11 -10 ------- Run | Scr Mat Slots Evolved . | . . Power . | . . Propulsion . | . . Utility . | . . Weapon . | . . Parts Attached 8 | 2 6 Power . | . . Engine . | . . Core . | . . Reactor . | . . Propulsion 2 | 2 . Treads 2 | 2 . Leg . | . . Wheel . | . . Hover . | . . Flight . | . . Utility 3 | . 3 Device 2 | . 2 Storage 1 | . 1 Processor . | . . Hackware . | . . Protection . | . . Artifact . | . . Weapon 3 | . 3 Energy Gun 2 | . 2 Energy Cannon . | . . Ballistic Gun . | . . Ballistic Cannon . | . . Launcher 1 | . 1 Special Weapon . | . . Impact Weapon . | . . Slashing Weapon . | . . Piercing Weapon . | . . Special Melee Weapon . | . . Unidentified Prototypes . | . . Parts Lost 2 | . 2 Power . | . . Propulsion . | . . Utility 1 | . 1 Weapon 1 | . 1 Highest Loss Streak 2 | . 2 To Critical Strikes . | . . Average Slot Usage (%) 93 | . 93 Engine 14 | . 14 Treads 28 | . 28 Device 7 | . 7 Storage 14 | . 14 Energy Gun 9 | . 9 Ballistic Gun 18 | . 18 Naked Turns . | . . Heaviest Build 21 | 13 21 Greatest Support 40 | 40 40 Greatest Overweight (x) . | . . Average Overweight (x) . | . . Largest Inventory Capacity 10 | 8 10 Average Capacity 9 | 8 9 Most Carried 10 | 5 10 Average Carried 5 | 2 5 Final Capacity 10 | 8 10 Final Carried 10 | 2 10 Class Distribution -------------------- 100% | Mutant Dominant Class ---------------- Mutant | -10/Materials Resources | -11 -10 ----------- Run | Scr Mat Matter Collected 404 | 244 160 Remotely . | . . Salvage Created 212 | 57 155 Parts 16 | 1 15 Haulers Intercepted . | . . Recyclers Shooed 1 | 1 . Parts Field Recycled . | . . Retrieved Matter . | . . Parts Self-Destructed . | . . Prevented . | . . Kills | -11 -10 ------- Run | Scr Mat Combat Hostiles Destroyed 4 | . 4 Guns 4 | . 4 Classes Destroyed 2 | 1 1 Recycler 1 | 1 . Abomination 4 | . 4 Best Kill Streak 1 | 1 1 Combat Bots Only 1 | . 1 Max Kills in Single Turn 1 | 1 1 Gunslinging . | . . Exploded . | . . Melee . | . . Uniques/NPCs Destroyed . | . . Combat | -11 -10 -------- Run | Scr Mat Damage Taken 1327 | . 1327 Core 266 | . 266 Absorbed by Shields . | . . Core Remaining (%) 100 | 100 . Volleys Fired 39 | 6 33 Largest 2 | 2 2 Hottest 70 | 40 70 Shots Fired 77 | 12 65 Gun 76 | 12 64 Cannon . | . . Launcher 1 | . 1 Special . | . . Kinetic 57 | 12 45 Thermal 19 | . 19 Explosive 1 | . 1 Electromagnetic . | . . Robot Hit Streak 10 | 5 10 Robot Miss Streak 14 | 2 14 Penetration Max . | . . Secondary Targets 1 | . 1 Max Gunslinging Chain 1 | . 1 Shots Hit Robots 45 | 7 38 Core Hits 17 | 2 15 Critical Kills . | . . Critical Parts Destroyed . | . . Critical Strikes 1 | . 1 Burn 1 | . 1 Melee Attacks . | . . Impact . | . . Slashing . | . . Piercing . | . . Sneak Attacks . | . . Combat Hostiles . | . . Follow-up Attacks . | . . Damage Inflicted 635 | 69 566 Guns 557 | 69 488 Cannons . | . . Explosions 70 | . 70 Melee . | . . Ramming 8 | . 8 Kinetic 356 | 69 287 Thermal 201 | . 201 Explosive 70 | . 70 Electromagnetic . | . . Impact . | . . Slashing . | . . Piercing . | . . Highest Corruption 6 | . 6 Average Corruption 4 | . 4 Corruption Purged . | . . Corruption Blocked . | . . Effects 20 | . 20 Message Errors 4 | . 4 Matter Fused 5 | . 5 Heat Flow Errors 2 | . 2 Energy Discharges 1 | . 1 Data Loss (minor) 1 | . 1 Data Loss (major) 3 | . 3 Misfires 2 | . 2 Alerts 1 | . 1 Weapon Failures 1 | . 1 Overload Shots . | . . Overflow Damage . | . . Projectiles . | . . Explosions . | . . Melee . | . . Knockbacks . | . . Impact . | . . Kinetic . | . . Secondary . | . . Self-Inflicted Damage . | . . Shots . | . . Rammed 4 | . 4 Targets Rammed 4 | . 4 Kicked . | . . Crushed . | . . Highest Temperature 200 | . 200 Average Temperature 69 | . 69 Received Heat Transfer 243 | . 243 Siege Activations . | . . Robots Corrupted . | . . Combat Hostiles . | . . Parts Fried . | . . Impact Corruptions . | . . Robots Melted . | . . Combat Hostiles . | . . Parts Melted . | . . Heat Transferred 135 | . 135 Parts Sabotaged . | . . Parts Stolen . | . . Parts Stripped . | . . Power Chain Reactions . | . . Missiles Intercepted . | . . Alert | -11 -10 ------- Run | Scr Mat Peak Influence 23 | 5 23 Initial 3 | . 3 Average 3 | 3 3 Maximum Alert Level . | . . Low Security (%) 100 | 100 100 Level 1 . | . . Level 2 . | . . Level 3 . | . . Level 4 . | . . Level 5 . | . . High Security . | . . Max Security . | . . Squads Dispatched 1 | . 1 Investigation 1 | . 1 Extermination . | . . Reinforcement . | . . Assault . | . . Garrison . | . . Intercept . | . . Searches Triggered . | . . Construction Impeded . | . . Haulers Reinforced . | . . Active Scanning Responses . | . . Cargo Convoy Interrupts . | . . Stealth | -11 -10 --------- Run | Scr Mat Distress Signals 1 | . 1 Communications Jammed . | . . Distress Signals . | . . Times Spotted 12 | . 12 Peak Tracking Total 4 | . 4 Tactical Retreats 1 | . 1 Traps | -11 -10 ------- Run | Scr Mat Traps Triggered . | . . Indirectly . | . . Trap Hack Attempts . | . . Triggered . | . . Disarmed . | . . Reprogrammed . | . . Reused . | . . Traps Extracted . | . . Installed . | . . Triggered . | . . Machines | -11 -10 ---------- Run | Scr Mat Machines Disabled . | . . Max in Single Turn . | . . Machines Sabotaged . | . . Overloaded Fab Kills . | . . Hacking | -11 -10 --------- Run | Scr Mat Machines Accessed 6 | . 6 Terminals 5 | . 5 Fabricators . | . . Repair Stations . | . . Recycling Units 1 | . 1 Scanalyzers . | . . Garrison Access . | . . Total Hacks 16 | . 16 Successful 11 | . 11 Failed 5 | . 5 Catastrophic 1 | . 1 Database Lockouts . | . . Manual 5 | . 5 Terminals 14 | . 14 Fabricators . | . . Repair Stations . | . . Recycling Units 2 | . 2 Scanalyzers . | . . Garrison Access . | . . Terminal Hacks 9 | . 9 Part Schematic 2 | . 2 Robot Analysis 1 | . 1 Prototype ID Bank 2 | . 2 Zone Layout 4 | . 4 Fabricator Hacks . | . . Repair Station Hacks . | . . Recycling Unit Hacks 2 | . 2 Report Inventory 1 | . 1 Retrieve Components 1 | . 1 Scanalyzer . | . . Garrison Access Hacks . | . . Unauthorized Hacks . | . . Terminals . | . . Fabricators . | . . Repair Stations . | . . Recycling Units . | . . Scanalyzers . | . . Garrison Access . | . . Data Cores Recovered . | . . Used . | . . Hacking Detections 4 | . 4 Full Trace Events . | . . Feedback Events . | . . Feedback Blocked . | . . Robot Schematics Acquired . | . . Robots Built . | . . Authchips . | . . Time . | . . Total Robot Build Rating . | . . Part Schematics Acquired 2 | . 2 Parts Built . | . . Authchips . | . . Time . | . . Total Part Build Rating . | . . Parts Repaired . | . . Time . | . . Parts Recycled . | . . Recycled Matter . | . . Retrieved Matter . | . . Retrieved Components 3 | . 3 Parts Scanalyzed . | . . Part Schematics Acquired . | . . Parts Damaged . | . . Bothacking | -11 -10 ------------ Run | Scr Mat Used RIF Installer . | . . Robots Hacked . | . . Non-combat . | . . Combat . | . . Robot Hacks Applied . | . . Relay Couplers Released . | . . Fabnet Peak Effective % . | . . Robots Rewired . | . . Allies Hacked . | . . Hacks Repelled . | . . Allies | -11 -10 -------- Run | Scr Mat Total Allies . | . . Largest Group . | . . Highest-Rated Group . | . . Highest-Rated Ally . | . . Total Orders . | . . Ally Attacks . | . . Total Damage . | . . Kills . | . . Allies Corrupted . | . . Allies Melted . | . . Intel | -11 -10 ------- Run | Scr Mat Robot Analysis Total 1 | . 1 Derelict Logs Recovered . | . . Drone Launches . | . . Drone Recoveries . | . . Exploration | -11 -10 ------------- Run | Scr Mat Turns Passed 1244 | 29 1215 Spaces Moved 545 | 5 540 Core . | . . Treads 545 | 5 540 Legs . | . . Wheels . | . . Hover . | . . Flight . | . . Fastest Speed 160 | 160 160 Average Speed 160 | 160 160 Slowest Speed 160 | 160 160 Overloaded Moves . | . . Propulsion Burnouts . | . . Robots Hopped . | . . Cave-ins Triggered . | . . Exploration Rate (%) 43 | 2 84 Regions Visited 1 Branch Regions . Pre-discovered Areas . | . . Known Exits Taken . | . . Unknown Exits Taken 1 | 1 . Scrap Searched . | . . Spaces Dug . | . . Terrain Destroyed 6 | . 6 Melee . | . . Projectile . | . . AOE 6 | . 6 Terrain Rammed . | . . Walls Destroyed . | . . Machines Disabled . | . . Actions | -11 -10 --------- Run | Scr Mat Total 619 | 17 602 Wait 10 | 1 9 Move 544 | 4 540 Hop . | . . Pick Up 9 | . 9 Fast Attach 2 | . 2 Attach 3 | 2 1 Detach . | . . Swap 3 | . 3 Drop 5 | 4 1 Fire 39 | 6 33 Melee . | . . Ram . | . . Kick . | . . Crush 4 | . 4 Escape Stasis . | . . Rewire . | . . Trap . | . . Miscellaneous . | . . Route ------- -11/Scrapyard -10/Materials (discovered 2 exits: [*Mat x2]) History --------- Turn | Location | Event 23 | -11/Scrapyard | Discovered new exit (range 3) 30 | -11/Scrapyard | Entered Materials 217 | -10/Materials | Discovered new exit (range 11) 303 | -10/Materials | Build established: Mutant 324 | -10/Materials | Discovered new exit (range 22) 649 | -10/Materials | Discovered new exit (range 16) 856 | -10/Materials | Core integrity fell below 50% 1238 | -10/Materials | Core integrity fell below 20% 1245 | -10/Materials | Destroyed by Lesser Abomination with Etherial Claws Last Messages --------------- 01187_ Unstable Anomaly suddenly flashes brightly. 01198_ Warp Anomaly forced to warp away. 01200_ Frozen by Ice Anomaly. 01200_ K-01 Serf cleans the Matter Filter. 01201_ Frozen by Ice Anomaly. 01203_ Forced to warp away. 01204_ Ice Anomaly forced to warp away. 01207_ UF04VVP%<%8XEXYCTKITNO 01207_ Lesser Abomination forced to warp away. 01212_ System corrupted: Grenade Launcher failed to launch. 01213_ Unstable Anomaly suddenly flashes brightly. 01214_ Frozen by Ice Anomaly. 01238_ Critical hit (Intensify). 01239_ K-01 Serf collects debris. 01240_ Frozen by Ice Anomaly. 01241_ Lesser Abomination spits out Wheel. 01241_ Lesser Abomination absorbs Wheel. 01242_ Ice Anomaly freezes K-01 Serf. 01243_ Frozen by Ice Anomaly. 01244_ Unstable Anomaly suddenly flashes brightly. Map ----- +----------------------------------------------------+ | ???????" """"""" ###### #?????????????? | | ?????? " %= + + #?????????????? | | ##???? " ! ="" # #?????????????? | | #####"" | "" # #?????????????? | | # ####"""""""" + !#?????????????? | | # #######"" # #?????????????? | | # | % # #?????????????? | | # ##########"" # #?????????????? | | # #%"""T""" "" ######?????????????? | | # ## " #?????????????????? | | +## ## " #?????????????????? | | ## """ """ " #?????????????????? | | + """ """ " #?????????????????? | | ## """ """ # #?????????????????? | | ######## ## ##?????????????????? | | ## "# !#???????????####???? | | ###########"# #??????????# #???? | | """" #?????????# # #????????##; < #???? | | """"" #??#######""# #?????### ; #???? | | """ # # #% #???###";;;; #???? | | ########## """ # #??## #???? | | % + # ##### k % #???? | | ###""##### # # # % % ????? | | # # # ! ####% !;;;###?????? | | ########## A =%% % ; ###?????? | | ?????????#% A@ # ###?????? | | ?????????# n % ###?????? | | ?????????# #% #### k # ###?????? | | #################"# ""??# ######?????? | | # ! ########## #??# ######?????? | | #??#% #??????????? | | < ! T #??# ## #???????? | | #??# ## #???????? | | # ##+####### #??# ## #???????? | | # "|" " #!%%==!#?## ##??# ## #???????? | | #""|"|""#="""%[#??# #???# ##?###?????? | | #########!"R"! #??# #???# # ?????? | | #???# " " #??# #???# # ?????? | | #???# #??# #???# # """ ?????? | | " #???# ! #??# #???# # """ ?????? | | T ############### #???# + """ ?????? | | " + #???# # ?????? | | ########## #???# # ?????? | | ##+###???????# % #???# + ?????? | | #????####+#+######?####+#######?????? | | ###### % #??????# #???????? | | + #??????# """ #???????? | | !###### "" #???????????????????????? | | #????# "T #???????????????????????? | | ## ###????# "" #???????????????????????? | +----------------------------------------------------+ Best States ------------- Heat Dissipation 39 Energy Generation 10 Energy Capacity 250 Matter Stores 300 Matter Capacity 300 Sight Range 16 Terrain Scan Density 10 Evasion (%) 40 Recoil Reduction 2 Item Schematics ----------------- Hcp. Storage Unit | -10/Materials | Hacked Huge Storage Unit | -10/Materials | Hacked Robot Schematics ------------------ None Fabricated ------------ Nothing Alien Tech Used ----------------- None Achievements -------------- None Challenges ------------ None Game ------ Seed ForceTargetingBoregun Manual? 0 Play Time 00:10:10 Cumulative 673.8 hours Start 2022.11.13 @ 23:44:58 End 2022.11.13 @ 23:56:16 Sessions 1 Manual Loads 0 Difficulty Rogue Special Mode Halloween2019/Abominations Game No. 618 Rogue 618 Adventurer 0 Explorer 0 Win Type - Total 28 Types 12/5/5/1/1/0/3/1/0 Lore% 91 Gallery% 96 Achievement% 80 Wizard Run 0 Options --------- ASCII 0 Keyboard 0 Movement Numpad Keybinds 1 Fullscreen 2 Font 24/Smallcaps Map View 76x50 Tactical HUD 1 Map Filters NONE Filters NONE Steam 1 RUN: 3cef4a0e-9c17-4aa8-ac09-40594df3f66a